[Event "*** Titled Tuesday Blitz"]
[Site "Chess.com"]
[Date "2021.04.06"]
[Round "8"]
[White "Rish_97"]
[Black "Mikhail_Golubev"]
[Result "1-0"]
[WhiteElo "2699"]
[BlackElo "2560"]
[TimeControl "180+1"]
[EndTime "11:30:42 PDT"]
[Termination "Rish_97 won on time"]

1. e4 {[%clk 0:03:00.9]} 1... c5 {[%clk 0:02:59.3]} 2. Nf3 {[%clk 0:03:00.4]}
2... d6 {[%clk 0:02:59.4]} 3. d4 {[%clk 0:03:00.3]} 3... Nf6 {[%clk 0:02:59.5]}
4. dxc5 {[%clk 0:02:56.1]} 4... Nxe4 {[%clk 0:02:57.1]} 5. cxd6 {[%clk
0:02:56.4]} 5... Nc6 {[%clk 0:02:56.9]} 6. Bf4 {[%clk 0:02:52.8]} 6... e5 {[%clk
0:02:26.3]} 7. Be3 {[%clk 0:02:23.3]} 7... Bxd6 {[%clk 0:02:19.8]} 8. Nbd2
{[%clk 0:02:14.4]} 8... Nxd2 {[%clk 0:02:07.5]} 9. Qxd2 {[%clk 0:02:14.3]} 9...
Bb4 {[%clk 0:02:05.9]} 10. c3 {[%clk 0:02:13.2]} 10... Qxd2+ {[%clk 0:02:05.6]}
11. Nxd2 {[%clk 0:02:14.1]} 11... Be7 {[%clk 0:02:04.8]} 12. g3 {[%clk
0:02:12.8]} 12... O-O {[%clk 0:02:00.2]} 13. Bg2 {[%clk 0:02:12.6]} 13... f5
{[%clk 0:01:58.3]} 14. Bd5+ {[%clk 0:02:09.4]} 14... Kh8 {[%clk 0:01:57.6]} 15.
Nc4 {[%clk 0:02:10]} 15... f4 {[%clk 0:01:48.6]} 16. Bd2 {[%clk 0:02:03]} 16...
Rd8 {[%clk 0:01:47]} 17. Bxc6 {[%clk 0:01:59.4]} 17... bxc6 {[%clk 0:01:46.4]}
18. Nxe5 {[%clk 0:02:00]} 18... Re8 {[%clk 0:01:42.5]} 19. gxf4 {[%clk
0:01:59.8]} 19... Bf6 {[%clk 0:01:21]} 20. Be3 {[%clk 0:01:59.2]} 20... Bxe5
{[%clk 0:01:19.8]} 21. fxe5 {[%clk 0:01:58.9]} 21... Rxe5 {[%clk 0:01:19.6]} 22.
O-O-O {[%clk 0:01:58.2]} 22... Be6 {[%clk 0:01:19]} 23. Rhg1 {[%clk 0:01:52.3]}
23... Bd5 {[%clk 0:01:10.8]} 24. Bd4 {[%clk 0:01:32.9]} 24... Re7 {[%clk
0:01:10.6]} 25. Rde1 {[%clk 0:01:32.1]} 25... Rf7 {[%clk 0:01:01.4]} 26. Re5
{[%clk 0:01:02.8]} 26... Rd8 {[%clk 0:00:54.9]} 27. Reg5 {[%clk 0:00:54.5]}
27... Rdd7 {[%clk 0:00:52.6]} 28. a4 {[%clk 0:00:51.1]} 28... h6 {[%clk
0:00:38.3]} 29. Re5 {[%clk 0:00:51.2]} 29... Kh7 {[%clk 0:00:38.6]} 30. a5
{[%clk 0:00:51.3]} 30... a6 {[%clk 0:00:36.2]} 31. Re8 {[%clk 0:00:50.9]} 31...
Rb7 {[%clk 0:00:34.1]} 32. b4 {[%clk 0:00:49.3]} 32... Bc4 {[%clk 0:00:31]} 33.
Kd2 {[%clk 0:00:42.3]} 33... Rbe7 {[%clk 0:00:29.6]} 34. Re1 {[%clk 0:00:42]}
34... Rxe8 {[%clk 0:00:27.5]} 35. Rxe8 {[%clk 0:00:41.4]} 35... Rd7 {[%clk
0:00:23]} 36. Rb8 {[%clk 0:00:36.1]} 36... Re7 {[%clk 0:00:19.4]} 37. Rb6 {[%clk
0:00:35.7]} 37... Bb5 {[%clk 0:00:18]} 38. Rb8 {[%clk 0:00:28.6]} 38... Kg6
{[%clk 0:00:15]} 39. Rd8 {[%clk 0:00:27.5]} 39... Kf5 {[%clk 0:00:14.6]} 40. Rd6
{[%clk 0:00:26.2]} 40... Re6 {[%clk 0:00:08.5]} 41. Rxe6 {[%clk 0:00:25.1]}
41... Kxe6 {[%clk 0:00:08.4]} 42. Bxg7 {[%clk 0:00:26]} 42... h5 {[%clk
0:00:08.5]} 43. Ke3 {[%clk 0:00:26.2]} 43... Kd5 {[%clk 0:00:04.9]} 44. Kf4
{[%clk 0:00:23.6]} 44... Ke6 {[%clk 0:00:05]} 45. Ke4 {[%clk 0:00:22.2]} 45...
Be2 {[%clk 0:00:04.3]} 46. Kd4 {[%clk 0:00:21.2]} 46... Kf7 {[%clk 0:00:03.5]}
47. Bh6 {[%clk 0:00:20.7]} 47... Ke6 {[%clk 0:00:03.9]} 48. Kc5 {[%clk
0:00:20.4]} 48... Kd7 {[%clk 0:00:03.1]} 49. c4 {[%clk 0:00:15.7]} 49... Kc7
{[%clk 0:00:02.8]} 50. Bf4+ {[%clk 0:00:15.6]} 50... Kb7 {[%clk 0:00:02.7]} 51.
Kd4 {[%clk 0:00:16.2]} 51... Bf1 {[%clk 0:00:01.3]} 52. Bd6 {[%clk 0:00:16]}
52... Kc8 {[%clk 0:00:01.2]} 53. f4 {[%clk 0:00:15.5]} 53... Kd7 {[%clk
0:00:01.4]} 54. Be5 {[%clk 0:00:11.7]} 54... Ke6 {[%clk 0:00:01.7]} 55. Kc5
{[%clk 0:00:12]} 55... Kd7 {[%clk 0:00:01.9]} 56. f5 {[%clk 0:00:11.6]} 56...
Be2 {[%clk 0:00:01.7]} 57. f6 {[%clk 0:00:11.6]} 57... Ke6 {[%clk 0:00:02]} 58.
Bd4 {[%clk 0:00:11.4]} 58... Bd3 {[%clk 0:00:02.2]} 59. h4 {[%clk 0:00:11.1]}
59... Be2 {[%clk 0:00:02.2]} 60. Bc3 {[%clk 0:00:09.8]} 60... Bd3 {[%clk
0:00:02.6]} 61. Kd4 {[%clk 0:00:05.4]} 61... Be2 {[%clk 0:00:03]} 62. Kc5 {[%clk
0:00:03.9]} 62... Bd3 {[%clk 0:00:03]} 63. Ba1 {[%clk 0:00:04.2]} 63... Be2
{[%clk 0:00:03]} 64. Kxc6 {[%clk 0:00:02.1]} 64... Bf1 {[%clk 0:00:03.6]} 65.
Kc5 {[%clk 0:00:03]} 1-0

[Event "*** Titled Tuesday Blitz"]
[Site "Chess.com"]
[Date "2021.04.06"]
[Round "8"]
[White "MVM2008"]
[Black "stepakyedael"]
[Result "0-1"]
[WhiteElo "2123"]
[BlackElo "2283"]
[TimeControl "180+1"]
[EndTime "11:30:45 PDT"]
[Termination "stepakyedael won by checkmate"]

1. e4 {[%clk 0:02:49.7]} 1... c5 {[%clk 0:02:58.9]} 2. Nf3 {[%clk 0:02:49.1]}
2... e6 {[%clk 0:02:58.9]} 3. d4 {[%clk 0:02:50]} 3... cxd4 {[%clk 0:02:58.4]}
4. Nxd4 {[%clk 0:02:49.3]} 4... a6 {[%clk 0:02:58.8]} 5. Nc3 {[%clk 0:02:49.4]}
5... Qc7 {[%clk 0:02:58.7]} 6. a3 {[%clk 0:02:46.7]} 6... Nf6 {[%clk 0:02:58.4]}
7. f4 {[%clk 0:02:46.5]} 7... d6 {[%clk 0:02:57.7]} 8. Be3 {[%clk 0:02:43.6]}
8... Nbd7 {[%clk 0:02:56.4]} 9. g4 {[%clk 0:02:40.6]} 9... b5 {[%clk 0:02:47.1]}
10. g5 {[%clk 0:02:39.4]} 10... Ng8 {[%clk 0:02:46.4]} 11. f5 {[%clk 0:02:19.2]}
11... Nc5 {[%clk 0:02:43.7]} 12. b4 {[%clk 0:02:13.1]} 12... Na4 {[%clk
0:02:41.7]} 13. Ncxb5 {[%clk 0:01:45.6]} 13... axb5 {[%clk 0:02:37.5]} 14. Bxb5+
{[%clk 0:01:46.5]} 14... Bd7 {[%clk 0:02:36.6]} 15. fxe6 {[%clk 0:01:45.2]}
15... fxe6 {[%clk 0:02:29.9]} 16. Nxe6 {[%clk 0:01:38.9]} 16... Qc3+ {[%clk
0:02:20.2]} 17. Bd2 {[%clk 0:01:38]} 17... Qe5 {[%clk 0:02:15.6]} 18. Bxd7+
{[%clk 0:00:40.3]} 18... Kxd7 {[%clk 0:02:13.6]} 19. Nxf8+ {[%clk 0:00:41.2]}
19... Rxf8 {[%clk 0:02:09.2]} 20. Qg4+ {[%clk 0:00:41.3]} 20... Kc7 {[%clk
0:01:58.9]} 21. Rd1 {[%clk 0:00:34.3]} 21... Nb2 {[%clk 0:01:48.7]} 22. Rb1
{[%clk 0:00:19.3]} 22... Nc4 {[%clk 0:01:46.9]} 23. Rb3 {[%clk 0:00:09.9]} 23...
Nxd2 {[%clk 0:01:40.3]} 24. Kxd2 {[%clk 0:00:10.8]} 24... Rf4 {[%clk 0:01:36]}
25. Qg3 {[%clk 0:00:04.6]} 25... Qd4+ {[%clk 0:01:21.2]} 26. Rd3 {[%clk
0:00:03.8]} 26... Qf2+ {[%clk 0:01:11]} 27. Qxf2 {[%clk 0:00:03.4]} 27... Rxf2+
{[%clk 0:01:11.2]} 28. Kc3 {[%clk 0:00:02.8]} 28... Ne7 {[%clk 0:01:09.8]} 29.
Rhd1 {[%clk 0:00:02.2]} 29... Rd8 {[%clk 0:01:05.9]} 30. e5 {[%clk 0:00:02.4]}
30... d5 {[%clk 0:01:06.2]} 31. Rh3 {[%clk 0:00:02.2]} 31... Ng6 {[%clk
0:01:03.3]} 32. Rxh7 {[%clk 0:00:01.8]} 32... Rd7 {[%clk 0:01:02.5]} 33. e6
{[%clk 0:00:01.8]} 33... Re7 {[%clk 0:01:01.6]} 34. Rxd5 {[%clk 0:00:02.1]}
34... Rf3+ {[%clk 0:00:59.5]} 35. Kb2 {[%clk 0:00:01.6]} 35... Nf4 {[%clk
0:00:56.7]} 36. Rd7+ {[%clk 0:00:01.7]} 36... Rxd7 {[%clk 0:00:56.1]} 37. exd7
{[%clk 0:00:02.6]} 37... Ne6 {[%clk 0:00:54.2]} 38. g6 {[%clk 0:00:02.4]} 38...
Kxd7 {[%clk 0:00:53.7]} 39. h4 {[%clk 0:00:03]} 39... Rf8 {[%clk 0:00:49.9]} 40.
h5 {[%clk 0:00:03.3]} 40... Kd6 {[%clk 0:00:50.3]} 41. h6 {[%clk 0:00:03.3]}
41... gxh6 {[%clk 0:00:50.3]} 42. Rxh6 {[%clk 0:00:03.2]} 42... Rg8 {[%clk
0:00:50.6]} 43. c3 {[%clk 0:00:01.6]} 43... Kd5 {[%clk 0:00:50.6]} 44. Kb3
{[%clk 0:00:02]} 44... Nf4 {[%clk 0:00:49.6]} 45. Rh1 {[%clk 0:00:01.5]} 45...
Rxg6 {[%clk 0:00:48.9]} 46. Rd1+ {[%clk 0:00:02.4]} 46... Kc6 {[%clk 0:00:47.9]}
47. Rd4 {[%clk 0:00:03.3]} 47... Ne6 {[%clk 0:00:47.3]} 48. Rc4+ {[%clk
0:00:03.8]} 48... Kb6 {[%clk 0:00:47.5]} 49. Re4 {[%clk 0:00:04.4]} 49... Nc7
{[%clk 0:00:46.2]} 50. Re5 {[%clk 0:00:04.5]} 50... Rg3 {[%clk 0:00:45.9]} 51.
a4 {[%clk 0:00:04.4]} 51... Rg1 {[%clk 0:00:41.2]} 52. Re4 {[%clk 0:00:04.5]}
52... Rb1+ {[%clk 0:00:38.3]} 53. Kc4 {[%clk 0:00:04.8]} 53... Rd1 {[%clk
0:00:36.9]} 54. a5+ {[%clk 0:00:05.1]} 54... Kb7 {[%clk 0:00:34.4]} 55. Re5
{[%clk 0:00:05.2]} 55... Rc1 {[%clk 0:00:31.7]} 56. Re3 {[%clk 0:00:04.2]} 56...
Rh1 {[%clk 0:00:30.2]} 57. Kb3 {[%clk 0:00:03.8]} 57... Rh5 {[%clk 0:00:29.2]}
58. c4 {[%clk 0:00:03.6]} 58... Na6 {[%clk 0:00:28.3]} 59. b5 {[%clk 0:00:03.6]}
59... Nc5+ {[%clk 0:00:28]} 60. Kb4 {[%clk 0:00:03.8]} 60... Kc7 {[%clk
0:00:27.6]} 61. b6+ {[%clk 0:00:03]} 61... Kc6 {[%clk 0:00:26.6]} 62. Re7 {[%clk
0:00:01.9]} 62... Na6+ {[%clk 0:00:24.5]} 63. Kc3 {[%clk 0:00:01.5]} 63... Rh3+
{[%clk 0:00:24]} 64. Kd4 {[%clk 0:00:01.8]} 64... Rh4+ {[%clk 0:00:24]} 65. Kc3
{[%clk 0:00:02.3]} 65... Rh3+ {[%clk 0:00:24.2]} 66. Kd4 {[%clk 0:00:02.3]}
66... Rh1 {[%clk 0:00:21.7]} 67. Ra7 {[%clk 0:00:02.4]} 67... Rd1+ {[%clk
0:00:19.9]} 68. Kc3 {[%clk 0:00:02.3]} 68... Nc5 {[%clk 0:00:18.2]} 69. Rc7+
{[%clk 0:00:02]} 69... Kd6 {[%clk 0:00:17.5]} 70. Rc8 {[%clk 0:00:02]} 70... Ra1
{[%clk 0:00:13.5]} 71. Rc7 {[%clk 0:00:01.7]} 71... Ra3+ {[%clk 0:00:11]} 72.
Kb4 {[%clk 0:00:01.7]} 72... Rb3# {[%clk 0:00:09.8]} 0-1

[Event "*** Titled Tuesday Blitz"]
[Site "Chess.com"]
[Date "2021.04.06"]
[Round "8"]
[White "ahmad_alkhatib11"]
[Black "ethylalcohol"]
[Result "1-0"]
[WhiteElo "2275"]
[BlackElo "2106"]
[TimeControl "180+1"]
[EndTime "11:30:52 PDT"]
[Termination "ahmad_alkhatib11 won by checkmate"]

1. Nf3 {[%clk 0:03:00.1]} 1... Nf6 {[%clk 0:02:59.6]} 2. g3 {[%clk 0:02:59.8]}
2... g6 {[%clk 0:03:00.1]} 3. b3 {[%clk 0:02:59.6]} 3... Bg7 {[%clk 0:03:00.7]}
4. Bb2 {[%clk 0:03:00]} 4... d6 {[%clk 0:03:01]} 5. d4 {[%clk 0:02:59.9]} 5...
O-O {[%clk 0:03:00.5]} 6. Bg2 {[%clk 0:02:59.9]} 6... Nc6 {[%clk 0:03:00.7]} 7.
O-O {[%clk 0:02:58.2]} 7... e5 {[%clk 0:03:00.8]} 8. dxe5 {[%clk 0:02:57.8]}
8... Ng4 {[%clk 0:03:00.9]} 9. c4 {[%clk 0:02:57.4]} 9... Ngxe5 {[%clk
0:02:59.7]} 10. Nc3 {[%clk 0:02:57]} 10... Bg4 {[%clk 0:02:53.8]} 11. Nxe5
{[%clk 0:02:43.7]} 11... Nxe5 {[%clk 0:02:53.4]} 12. h3 {[%clk 0:02:41.2]} 12...
Bd7 {[%clk 0:02:49.5]} 13. Kh2 {[%clk 0:02:33.2]} 13... Rb8 {[%clk 0:02:43.8]}
14. Qd2 {[%clk 0:02:32.9]} 14... f5 {[%clk 0:02:26]} 15. e3 {[%clk 0:02:27.1]}
15... g5 {[%clk 0:02:22.9]} 16. f4 {[%clk 0:02:19.5]} 16... Ng6 {[%clk
0:02:19.9]} 17. Rad1 {[%clk 0:01:53.8]} 17... h5 {[%clk 0:02:18.8]} 18. fxg5
{[%clk 0:01:30.5]} 18... Qxg5 {[%clk 0:02:15.6]} 19. h4 {[%clk 0:01:27.5]} 19...
Nxh4 {[%clk 0:02:07.8]} 20. gxh4 {[%clk 0:01:27.1]} 20... Qxh4+ {[%clk
0:02:08.6]} 21. Kg1 {[%clk 0:01:26.8]} 21... Be5 {[%clk 0:02:08.8]} 22. Rf3
{[%clk 0:01:01.1]} 22... Qh2+ {[%clk 0:01:40.5]} 23. Kf1 {[%clk 0:01:00.4]}
23... f4 {[%clk 0:01:40.3]} 24. exf4 {[%clk 0:00:41.5]} 24... Bxf4 {[%clk
0:01:29.3]} 25. Qd5+ {[%clk 0:00:40.6]} 25... Kh7 {[%clk 0:01:29.1]} 26. Ne2
{[%clk 0:00:20.3]} 26... Be5 {[%clk 0:01:15.2]} 27. Bxe5 {[%clk 0:00:18.9]}
27... Rxf3+ {[%clk 0:00:59.9]} 28. Qxf3 {[%clk 0:00:19.8]} 28... Qxe5 {[%clk
0:00:41.4]} 29. Qe4+ {[%clk 0:00:19.9]} 29... Qf5+ {[%clk 0:00:35]} 30. Qxf5+
{[%clk 0:00:17.7]} 30... Bxf5 {[%clk 0:00:35.9]} 31. Ng3 {[%clk 0:00:16.9]}
31... Bg4 {[%clk 0:00:35.4]} 32. Re1 {[%clk 0:00:14.9]} 32... Rf8+ {[%clk
0:00:35.8]} 33. Kg1 {[%clk 0:00:15]} 33... h4 {[%clk 0:00:36.1]} 34. Ne4 {[%clk
0:00:12.2]} 34... h3 {[%clk 0:00:35.6]} 35. Bxh3 {[%clk 0:00:10.9]} 35... Rg8
{[%clk 0:00:28.6]} 36. Nf6+ {[%clk 0:00:08.8]} 36... Kg6 {[%clk 0:00:28.8]} 37.
Nxg8 {[%clk 0:00:08.9]} 37... Bxh3 {[%clk 0:00:29.7]} 38. Ne7+ {[%clk
0:00:08.6]} 38... Kf7 {[%clk 0:00:30.1]} 39. Nd5 {[%clk 0:00:09.5]} 39... Be6
{[%clk 0:00:30.2]} 40. Nf4 {[%clk 0:00:08.9]} 40... Bf5 {[%clk 0:00:30.1]} 41.
Kf2 {[%clk 0:00:09.8]} 41... Kf6 {[%clk 0:00:30.5]} 42. Ne2 {[%clk 0:00:10]}
42... Bc2 {[%clk 0:00:30.6]} 43. Rc1 {[%clk 0:00:10.1]} 43... Bd3 {[%clk
0:00:30.7]} 44. Rc3 {[%clk 0:00:11]} 44... Bf5 {[%clk 0:00:31]} 45. Ke3 {[%clk
0:00:11.4]} 45... Ke5 {[%clk 0:00:31.3]} 46. Ng3 {[%clk 0:00:10.8]} 46... Bg4
{[%clk 0:00:31.1]} 47. Nf1 {[%clk 0:00:10.4]} 47... c6 {[%clk 0:00:31.4]} 48.
Kd2 {[%clk 0:00:10.6]} 48... d5 {[%clk 0:00:31.3]} 49. cxd5 {[%clk 0:00:10.7]}
49... cxd5 {[%clk 0:00:31.7]} 50. Rg3 {[%clk 0:00:11]} 50... Bf5 {[%clk
0:00:31.5]} 51. Ne3 {[%clk 0:00:11.4]} 51... Be4 {[%clk 0:00:31.1]} 52. Rg5+
{[%clk 0:00:11.6]} 52... Kf4 {[%clk 0:00:31.4]} 53. Rg4+ {[%clk 0:00:11.5]}
53... Ke5 {[%clk 0:00:30.3]} 54. Rg7 {[%clk 0:00:09.9]} 54... d4 {[%clk
0:00:30.2]} 55. Nc4+ {[%clk 0:00:10.1]} 55... Kd5 {[%clk 0:00:30.3]} 56. Rg5+
{[%clk 0:00:10]} 56... Ke6 {[%clk 0:00:29.4]} 57. Rg4 {[%clk 0:00:09.7]} 57...
Bf5 {[%clk 0:00:28.9]} 58. Rxd4 {[%clk 0:00:09.3]} 58... b5 {[%clk 0:00:29.5]}
59. Ne3 {[%clk 0:00:09.2]} 59... Bb1 {[%clk 0:00:28]} 60. Rb4 {[%clk 0:00:08.7]}
60... a6 {[%clk 0:00:26.2]} 61. a4 {[%clk 0:00:08.9]} 61... bxa4 {[%clk
0:00:25.6]} 62. Rxa4 {[%clk 0:00:09.8]} 62... Be4 {[%clk 0:00:24]} 63. Rxa6+
{[%clk 0:00:09.7]} 63... Kd7 {[%clk 0:00:24.4]} 64. Ra5 {[%clk 0:00:10.6]} 64...
Kc6 {[%clk 0:00:24.7]} 65. Nc4 {[%clk 0:00:11]} 65... Bd5 {[%clk 0:00:24.7]} 66.
Kc3 {[%clk 0:00:11.9]} 66... Bf7 {[%clk 0:00:22.7]} 67. Ra6+ {[%clk 0:00:11.7]}
67... Kb5 {[%clk 0:00:22.3]} 68. Ra5+ {[%clk 0:00:12.6]} 68... Kc6 {[%clk
0:00:21.8]} 69. Rg5 {[%clk 0:00:12.9]} 69... Bd5 {[%clk 0:00:21]} 70. Rxd5
{[%clk 0:00:12.2]} 70... Kxd5 {[%clk 0:00:21.9]} 71. b4 {[%clk 0:00:12.9]} 71...
Kc6 {[%clk 0:00:22.3]} 72. Na3 {[%clk 0:00:13.2]} 72... Kb6 {[%clk 0:00:22.1]}
73. Kc4 {[%clk 0:00:13.6]} 73... Kc6 {[%clk 0:00:22.2]} 74. b5+ {[%clk
0:00:14.5]} 74... Kb6 {[%clk 0:00:22.6]} 75. Kb4 {[%clk 0:00:15.4]} 75... Kb7
{[%clk 0:00:22.2]} 76. Nc4 {[%clk 0:00:16.3]} 76... Kc7 {[%clk 0:00:22]} 77. Kc5
{[%clk 0:00:16.8]} 77... Kb7 {[%clk 0:00:22.1]} 78. b6 {[%clk 0:00:17.7]} 78...
Ka6 {[%clk 0:00:22.1]} 79. Ne5 {[%clk 0:00:16.6]} 79... Kb7 {[%clk 0:00:22]} 80.
Kb5 {[%clk 0:00:17.1]} 80... Kb8 {[%clk 0:00:21.6]} 81. Kc6 {[%clk 0:00:17.5]}
81... Kc8 {[%clk 0:00:21.9]} 82. b7+ {[%clk 0:00:17.5]} 82... Kb8 {[%clk
0:00:22.1]} 83. Nd7+ {[%clk 0:00:17.8]} 83... Ka7 {[%clk 0:00:22.3]} 84. b8=Q+
{[%clk 0:00:17.8]} 84... Ka6 {[%clk 0:00:22.8]} 85. Qb6# {[%clk 0:00:18.7]} 1-0

[Event "*** Titled Tuesday Blitz"]
[Site "Chess.com"]
[Date "2021.04.06"]
[Round "8"]
[White "Eloist"]
[Black "Deepweb2020"]
[Result "1/2-1/2"]
[WhiteElo "2359"]
[BlackElo "2515"]
[TimeControl "180+1"]
[EndTime "11:30:54 PDT"]
[Termination "Game drawn - insufficient material"]

1. e4 {[%clk 0:03:00.9]} 1... e5 {[%clk 0:02:58.8]} 2. Bc4 {[%clk 0:03:00.4]}
2... Nf6 {[%clk 0:02:57.8]} 3. d3 {[%clk 0:03:00.6]} 3... Bc5 {[%clk 0:02:57.1]}
4. Nf3 {[%clk 0:03:00.9]} 4... d6 {[%clk 0:02:57.1]} 5. O-O {[%clk 0:03:01.3]}
5... O-O {[%clk 0:02:55.5]} 6. c3 {[%clk 0:03:01.7]} 6... a6 {[%clk 0:02:55.4]}
7. Bb3 {[%clk 0:03:01.5]} 7... Ba7 {[%clk 0:02:55]} 8. Nbd2 {[%clk 0:03:01.5]}
8... Nc6 {[%clk 0:02:52.6]} 9. h3 {[%clk 0:03:00.7]} 9... d5 {[%clk 0:02:52.5]}
10. exd5 {[%clk 0:02:58.1]} 10... Nxd5 {[%clk 0:02:52.7]} 11. Re1 {[%clk
0:02:57.9]} 11... Nf4 {[%clk 0:02:52.3]} 12. d4 {[%clk 0:02:55]} 12... exd4
{[%clk 0:02:50.2]} 13. Ne4 {[%clk 0:02:47.7]} 13... Ne6 {[%clk 0:02:41.6]} 14.
Nfg5 {[%clk 0:02:37.8]} 14... dxc3 {[%clk 0:02:36.4]} 15. Qc2 {[%clk 0:02:13.2]}
15... g6 {[%clk 0:02:06.9]} 16. bxc3 {[%clk 0:02:11.4]} 16... Kg7 {[%clk
0:01:35.1]} 17. Ba3 {[%clk 0:02:03.6]} 17... Nxg5 {[%clk 0:01:30.3]} 18. Rad1
{[%clk 0:02:03.1]} 18... Bf5 {[%clk 0:01:17.9]} 19. Rxd8 {[%clk 0:01:58.7]}
19... Rfxd8 {[%clk 0:01:09.8]} 20. h4 {[%clk 0:01:44.5]} 20... Nxe4 {[%clk
0:00:59.8]} 21. Rxe4 {[%clk 0:01:44.1]} 21... h5 {[%clk 0:00:34.6]} 22. Qe2
{[%clk 0:01:37.7]} 22... Bxe4 {[%clk 0:00:33.4]} 23. Qxe4 {[%clk 0:01:37.4]}
23... Rd2 {[%clk 0:00:29.5]} 24. Kh2 {[%clk 0:01:10.3]} 24... Rxf2 {[%clk
0:00:23.8]} 25. Bc1 {[%clk 0:01:04.5]} 25... Rd8 {[%clk 0:00:19.4]} 26. Be3
{[%clk 0:01:02.7]} 26... Bxe3 {[%clk 0:00:18.6]} 27. Qxe3 {[%clk 0:01:02.2]}
27... Rdd2 {[%clk 0:00:19.5]} 28. Bd5 {[%clk 0:01:00.1]} 28... Rxd5 {[%clk
0:00:11.4]} 29. Qxf2 {[%clk 0:00:59.1]} 29... Re5 {[%clk 0:00:07.9]} 30. Qf4
{[%clk 0:00:56.7]} 30... f6 {[%clk 0:00:05.2]} 31. Qd2 {[%clk 0:00:55.3]} 31...
Kf7 {[%clk 0:00:04]} 32. Qd7+ {[%clk 0:00:54.8]} 32... Re7 {[%clk 0:00:04.6]}
33. Qd5+ {[%clk 0:00:54.8]} 33... Kg7 {[%clk 0:00:04.1]} 34. a4 {[%clk
0:00:53.1]} 34... Ne5 {[%clk 0:00:04]} 35. Qxb7 {[%clk 0:00:52]} 35... Ng4+
{[%clk 0:00:04]} 36. Kg3 {[%clk 0:00:51.3]} 36... Re3+ {[%clk 0:00:02.5]} 37.
Kf4 {[%clk 0:00:51.3]} 37... Rxc3 {[%clk 0:00:02.5]} 38. Qxa6 {[%clk 0:00:50.3]}
38... Rc1 {[%clk 0:00:01.6]} 39. a5 {[%clk 0:00:45.9]} 39... Rf1+ {[%clk
0:00:01.4]} 40. Ke4 {[%clk 0:00:45.5]} 40... Re1+ {[%clk 0:00:01.6]} 41. Kd4
{[%clk 0:00:43.8]} 41... Rd1+ {[%clk 0:00:01.9]} 42. Kc3 {[%clk 0:00:38.3]}
42... Rc1+ {[%clk 0:00:02.2]} 43. Kb2 {[%clk 0:00:38.2]} 43... Rc5 {[%clk
0:00:02.7]} 44. Qb7 {[%clk 0:00:35.5]} 44... Ne3 {[%clk 0:00:03]} 45. a6 {[%clk
0:00:34.1]} 45... Nc4+ {[%clk 0:00:03.5]} 46. Ka2 {[%clk 0:00:26.4]} 46... Nb6
{[%clk 0:00:03]} 47. a7 {[%clk 0:00:23.8]} 47... Ra5+ {[%clk 0:00:03.1]} 48. Kb3
{[%clk 0:00:23]} 48... Rb5+ {[%clk 0:00:03.5]} 49. Kc2 {[%clk 0:00:21.2]} 49...
Rc5+ {[%clk 0:00:01.1]} 50. Kd3 {[%clk 0:00:20.9]} 50... Rd5+ {[%clk 0:00:01.1]}
51. Ke3 {[%clk 0:00:19.1]} 51... Re5+ {[%clk 0:00:01.3]} 52. Kf2 {[%clk
0:00:18.8]} 52... Re7 {[%clk 0:00:02.2]} 53. a8=Q {[%clk 0:00:17.9]} 53... Nxa8
{[%clk 0:00:02.8]} 54. Qxa8 {[%clk 0:00:18.3]} 54... Kf7 {[%clk 0:00:03.7]} 55.
Qc6 {[%clk 0:00:18.5]} 55... Kg7 {[%clk 0:00:03.9]} 56. Qd5 {[%clk 0:00:18.5]}
56... Rf7 {[%clk 0:00:04.8]} 57. Kf3 {[%clk 0:00:18.5]} 57... Re7 {[%clk
0:00:05.2]} 58. g4 {[%clk 0:00:18.5]} 58... hxg4+ {[%clk 0:00:05.3]} 59. Kxg4
{[%clk 0:00:19.4]} 59... Kf8 {[%clk 0:00:05.1]} 60. Qd3 {[%clk 0:00:18]} 60...
Kg7 {[%clk 0:00:05]} 61. Qc4 {[%clk 0:00:17.4]} 61... Re4+ {[%clk 0:00:04.5]}
62. Qxe4 {[%clk 0:00:14.7]} 62... f5+ {[%clk 0:00:05.4]} 63. Kf4 {[%clk
0:00:14.6]} 63... fxe4 {[%clk 0:00:05.8]} 64. Kxe4 {[%clk 0:00:11.9]} 64... Kh6
{[%clk 0:00:06.2]} 65. Ke5 {[%clk 0:00:10.6]} 65... Kh5 {[%clk 0:00:06.3]} 66.
Kf6 {[%clk 0:00:10.3]} 66... Kxh4 {[%clk 0:00:06.2]} 67. Kxg6 {[%clk 0:00:10]}
67... c5 {[%clk 0:00:04.6]} 68. Kf5 {[%clk 0:00:09.8]} 68... c4 {[%clk
0:00:04.1]} 69. Ke4 {[%clk 0:00:10.1]} 69... c3 {[%clk 0:00:02.8]} 70. Kd3
{[%clk 0:00:10]} 70... c2 {[%clk 0:00:01.3]} 71. Kxc2 {[%clk 0:00:09.8]} 1/2-1/2